Cogmind - Beta 16 @@@ ROGUE MODE // 2025.12.17 @ 10:48:02 Player: H3-MLN Result: Destroyed by G-50 Soldier with Heavy Laser Performance ------------- Evolutions (5) 2500 Regions Visited (24) 4800 Robots Destroyed (312) 1560 Value Destroyed (11342) 11342 Prototype IDs (71) 1420 Alien Tech Used (2) 400 Bonus (1703) 1703 TOTAL SCORE: 23725 Bonus ------- High Alert Combat Kills 167 Follower Combat Kills 622 Entered Garrisons 400 Used RIF Installer 1000 Aligned with FarCom 300 Destroyed Z-Imprinter 1000 Triggered Deep Caves Wall 500 Friendly Fire -2286 Cogmind --------- Core Integrity 0/1000 Matter 300/300 Energy 100/100 System Corruption 0% Temperature Cool (49) Movement Core (850) Ox16 Location -5/Garrison Parts ------- > --- POWER (2) -------- Zionite Light DM Reactor > --- PROPULSION (6) --- (None) > --- UTILITY (7) ------ Advanced Heat Sink High-capacity Storage Unit Enhanced Optical Array Advanced Signal Interpreter Tech Extrapolator > --- WEAPON (3) ------- (None) > --- INVENTORY (20) --- Cooled Gravmag System Combat Linear Gravjet Zionite Biocell (600) Advanced Matter Compressor (400) Zionite Metafield Generator Improved Sensor Array Experimental Reaction Control System Authchip [Propulsion] Authchip [Weapon] Authchip [Weapon] Relay Coupler [NC] (31) Relay Coupler [Heavy] (13) Mobile Refinery Mk. CCLXVII Advanced Remote Datajack CPS Tube (2) Spear Peak State ------------ > --- POWER ------------ Heavy Deuterium Engine Zionite Light DM Reactor > --- PROPULSION ------- Zionite Glidesys I Zionite Glidesys II Zionite Glidesys II Zionite Glidesys II Zionite Glidesys II > --- UTILITY ---------- Enhanced Optical Array Advanced Signal Interpreter Core Analyzer Advanced Phase Shifter Zionite Heavy Carapace > --- WEAPON ----------- Zionite Laser-M Long-range Proton Cannon Heavy Rocket Launcher > --- INVENTORY -------- Advanced Matter Compressor Zionite Heavy Carapace Mini Grenade Launcher Makeshift Sword [Rating: 106] Favorites ----------- Power Heavy Deuterium Engine Engine Heavy Deuterium Engine Power Core Nuclear Core Reactor Zionite Light DM Reactor Propulsion Biometal Leg Treads Light Treads Leg Biometal Leg Wheel Armored Wheel Hover Unit Zionite Glidesys II Flight Unit VTOL Module Utility High-capacity Storage Unit Device Experimental Heat Sink Storage High-capacity Storage Unit Processor Enhanced Optical Array Hackware Hacking Suite Protection Improved Light Armor Plating Weapon Light EM Pulse Cannon Energy Gun Gatling Laser Energy Cannon Light EM Pulse Cannon Ballistic Gun Heavy Machine Gun Ballistic Cannon Heavy Assault Cannon Launcher Mini Grenade Launcher Special Weapon Advanced Remote Datajack Impact Weapon Heavy Mace Slashing Weapon Longsword +1 Piercing Weapon Spear Special Melee Weapon Datajack Build | -11 -10 -10 -9 -9 -9 -8 -8 -8 -8 -8 -8 -8 -6 -6 -6 -6 -6 -6 -6 -5 -5 -5 -5 -5 ------- Run | Yrd Mat Min Mat Min Exi Min Mat Gar Mat Sto Rec Scr Fac Was Fac Low Low Zio Dee Pro Fac Was Fac Gar Slots Evolved 10 | . . . 2 . . . 2 . . . . . 4 . . . . . . . 2 . . . Power . | . . . . . . . . . . . . . . . . . . . . . . . . . Propulsion 4 | . . . . . . . 2 . . . . . 1 . . . . . . . 1 . . . Utility 5 | . . . 2 . . . . . . . . . 2 . . . . . . . 1 . . . Weapon 1 | . . . . . . . . . . . . . 1 . . . . . . . . . . . Parts Attached 235 | 8 7 5 8 4 2 3 24 9 8 14 . 3 22 1 11 7 4 15 36 . 25 . 2 17 Power 26 | 2 . 1 2 . . . 3 . . 3 . . 2 . . . 2 3 3 . 2 . . 3 Engine 16 | 2 . 1 1 . . . 3 . . 3 . . 2 . . . . 1 . . 2 . . 1 Core 6 | . . . 1 . . . . . . . . . . . . . 2 2 . . . . . 1 Reactor 4 | . . . . . . . . . . . . . . . . . . . 3 . . . . 1 Propulsion 70 | 2 2 1 3 1 1 1 6 5 2 5 . 1 7 . 1 . 2 4 9 . 11 . . 6 Treads 15 | . 1 1 2 . . . 6 1 . . . . 1 . . . . . . . . . . 3 Leg 28 | . . . . . . . . 4 2 5 . 1 6 . 1 . 2 3 1 . . . . 3 Wheel 9 | 2 1 . . 1 1 1 . . . . . . . . . . . . . . 3 . . . Hover 15 | . . . . . . . . . . . . . . . . . . 1 8 . 6 . . . Flight 3 | . . . 1 . . . . . . . . . . . . . . . . . 2 . . . Utility 94 | 2 3 . 2 2 . 1 11 2 5 4 . 2 12 1 8 4 . 7 14 . 9 . 2 3 Device 36 | 1 . . . . . 1 4 1 1 . . 1 5 . 4 3 . 3 5 . 3 . 2 2 Storage 10 | 1 2 . 1 . . . 2 1 . . . . . . . . . . 1 . 2 . . . Processor 6 | . . . . . . . . . . . . . 3 . . 1 . . 1 . . . . 1 Hackware 12 | . . . . . . . 1 . . 2 . . 2 1 2 . . . . . 4 . . . Protection 30 | . 1 . 1 2 . . 4 . 4 2 . 1 2 . 2 . . 4 7 . . . . . Artifact . | . . . . . . . . . . . . . . . . . . . . . . . . . Weapon 45 | 2 2 3 1 1 1 1 4 2 1 2 . . 1 . 2 3 . 1 10 . 3 . . 5 Energy Gun 15 | 2 . . 1 . . . . . . . . . . . 1 . . . 6 . 1 . . 4 Energy Cannon 8 | . 2 2 . . . . 1 1 . . . . 1 . . 1 . . . . . . . . Ballistic Gun 5 | . . . . . . 1 1 1 . 1 . . . . . . . . . . 1 . . . Ballistic Cannon 3 | . . . . . . . 1 . . . . . . . 1 . . . . . . . . 1 Launcher 4 | . . 1 . . . . 1 . 1 . . . . . . . . 1 . . . . . . Special Weapon 4 | . . . . . . . . . . 1 . . . . . 1 . . 2 . . . . . Impact Weapon 1 | . . . . 1 . . . . . . . . . . . . . . . . . . . . Slashing Weapon 2 | . . . . . . . . . . . . . . . . . . . 2 . . . . . Piercing Weapon 1 | . . . . . . . . . . . . . . . . . . . . . 1 . . . Special Melee Weapon 2 | . . . . . 1 . . . . . . . . . . 1 . . . . . . . . Unidentified Prototypes 22 | . . . 2 . . . 2 1 . 2 . . . . . 1 . 1 12 . . . . 1 Corrupted Parts 1 | . . . . . . . . . . . . . . . . . . 1 . . . . . . System Corruption 4 | . . . . . . . . . . . . . . . . . . 4 . . . . . . Parts Lost 69 | . 1 3 . 1 . 3 3 . . 1 . . 3 . 1 . 3 1 16 . 7 . . 26 Power 10 | . 1 1 . . . . 1 . . 1 . . 1 . . . . . 2 . . . . 3 Propulsion 31 | . . 1 . . . 1 . . . . . . 1 . . . 3 1 8 . 5 . . 11 Utility 13 | . . . . . . . 2 . . . . . 1 . . . . . 5 . 1 . . 4 Weapon 15 | . . 1 . 1 . 2 . . . . . . . . 1 . . . 1 . 1 . . 8 Highest Loss Streak 14 | . 1 1 . 1 . 3 2 . . 1 . . 2 . 1 . 2 1 8 . 5 . . 14 To Critical Strikes . | . . . . . . . . . . . . . . . . . . . . . . . . . Average Backups 16 | 2 8 14 13 13 13 11 16 18 17 17 17 18 18 18 17 18 17 19 11 19 18 19 18 19 Power . | . . . . . . . . . . . . . . . . . . . . 1 1 2 2 1 Propulsion 2 | . 2 3 3 6 6 3 3 3 1 . 3 2 . . . 1 . . . . . . 1 1 Utility 8 | . . 2 1 2 2 3 7 8 9 10 8 8 11 12 11 11 11 13 7 11 10 12 10 11 Weapon 4 | . 5 7 9 3 4 4 5 5 5 5 5 5 3 3 3 2 1 1 1 4 2 2 3 3 Tool/Special . | . . . . . . . . . . . . . . . . . . . . . . . . . Unused Backups 50 | . 1 1 3 2 2 1 1 5 3 2 . 1 3 1 4 1 3 2 3 . 1 . . 10 Power . | . . . . . . . . . . . . . . . . . . . . . . . . . Propulsion 11 | . . . . . 2 . . . 3 . . 1 3 . . . . . 1 . . . . 1 Utility 23 | . . 1 . . . . . 5 . 1 . . . 1 4 . 2 . 2 . . . . 7 Weapon 15 | . 1 . 3 2 . 1 1 . . 1 . . . . . . 1 2 . . 1 . . 2 Tool/Special 1 | . . . . . . . . . . . . . . . . 1 . . . . . . . . Average Slot Usage (%) 92 | . 99 100 94 100 100 100 86 98 99 98 100 93 80 92 92 94 89 92 85 76 81 90 94 91 Engine 6 | . 14 14 5 . . . 6 9 9 8 9 9 5 6 6 6 6 9 4 . 3 . . 4 Core 2 | . . . 5 11 11 11 . . . . . . . . . . 3 2 1 . . . . 4 Treads 4 | . 12 14 11 11 10 . 14 17 . . . . . . . . . . . . . . . 13 Leg 16 | . . . . . . . . 2 35 35 36 35 29 33 32 32 24 26 7 . . . . 7 Wheel 5 | . 15 14 11 11 11 22 17 15 . . . . . . . . . . . . 1 . . . Hover 3 | . . . . . . . . . . . . . . . . . . 1 21 31 25 33 33 5 Device 6 | . . . . . . 4 8 9 9 9 9 14 12 13 7 6 6 6 2 10 7 5 11 9 Storage 10 | . 20 28 28 27 22 18 9 9 9 9 9 9 6 6 6 6 6 6 2 6 5 5 5 5 Processor 7 | . . . . . . . . . . . . . 5 13 13 19 18 18 18 18 11 11 11 15 Hackware 2 | . . . . . . . 1 9 4 4 8 . 1 3 6 . . . . . 11 16 11 5 Protection 8 | . 7 . 11 16 22 22 16 9 13 13 9 9 6 2 4 5 6 5 7 1 . . . . Energy Gun 2 | . 1 . . . . . . . . . . . . . . 4 6 6 4 1 . . . 13 Energy Cannon 7 | . 26 25 20 20 16 12 1 7 8 8 5 . 2 2 5 2 6 6 3 . . . . . Ballistic Gun 1 | . . . . . . 3 2 7 9 8 5 . . . . . . . . . . . . . Ballistic Cannon 1 | . . . . . . . 6 1 . . . 3 6 6 5 3 . . . . . . . . Peak Build Rating 106 | 9 12 13 20 23 24 28 36 57 60 58 63 65 86 84 84 83 85 86 106 76 100 98 103 100 Average Rating 57 | 5 10 12 16 20 22 25 31 39 57 56 56 61 74 83 81 81 76 74 84 72 83 93 99 85 On Entrance 55 | . 9 12 12 19 22 24 28 35 57 58 57 63 59 84 84 83 83 74 83 76 72 90 98 100 Avg Prop Armor Cover (%) 8 | . 9 11 8 7 7 . 9 12 . 4 . . 2 3 3 . . 1 8 . 10 . . 8 Naked Turns . | . . . . . . . . . . . . . . . . . . . . . . . . . Heaviest Build 94 | 15 34 34 45 48 46 46 74 74 71 71 62 79 94 80 80 76 89 89 89 58 74 62 64 82 Greatest Support 107 | 26 26 12 12 12 24 24 40 81 86 86 86 87 107 87 103 103 103 92 92 58 69 64 64 69 Greatest Overweight (x) 5 | . 2 2 3 3 3 1 3 3 . . . . 1 . . . 1 1 3 . 5 . . 4 Average Overweight (x) . | . 1 2 2 3 2 1 1 1 . . . . . . . . . . . . . . . . Largest Inventory Capacity 20 | 8 15 15 15 15 15 15 20 20 20 20 20 20 20 20 20 20 20 20 20 20 20 20 20 20 Average Capacity 18 | 7 10 15 15 15 15 15 18 20 20 20 20 20 20 20 20 20 20 20 12 20 19 20 20 20 Most Carried 20 | 4 15 15 15 15 15 15 20 20 20 20 20 20 20 20 20 20 20 20 20 20 20 20 20 20 Average Carried 17 | 2 8 14 14 14 14 13 17 19 19 19 19 19 19 19 19 19 18 19 11 19 18 19 18 19 Final Capacity 20 | 8 15 15 15 15 15 15 20 20 20 20 20 20 20 20 20 20 20 20 20 20 20 20 20 20 Final Carried 20 | 4 15 13 15 15 15 11 20 20 20 20 19 20 20 20 19 20 16 20 20 20 19 20 19 16 Class Distribution -------------------- 33% | Mutant 28% | Scavenger-Mutant 11% | Trapper-Skirmisher 7% | Gunner 5% | Scavenger-Gunner 3% | Scavenger-Scout 3% | Scavenger-Skirmisher Dominant Class ---------------- Mutant | -10/Materials Mutant | -10/Mines Mutant | -9/Materials Mutant | -9/Mines Mutant | -9/Exiles Mutant | -8/Mines Mutant | -8/Materials Mutant | -8/Garrison Scavenger-Mutant | -8/Materials Scavenger-Mutant | -8/Storage Scavenger-Mutant | -8/Recycling Scavenger-Mutant | -8/Scraptown Scavenger-Mutant | -6/Factory Gunner | -6/Waste Gunner | -6/Factory Skirmisher | -6/Lower Caves Trapper-Skirmisher | -6/Lower Caves Trapper-Skirmisher | -6/Zion Scavenger-Mutant | -6/Deep Caves Scavenger-Scout | -5/Proximity Caves Scavenger-Scout | -5/Factory Scavenger-Mutant | -5/Waste Scavenger-Scout | -5/Factory Scavenger-Skirmisher | -5/Garrison Resources | -11 -10 -10 -9 -9 -9 -8 -8 -8 -8 -8 -8 -8 -6 -6 -6 -6 -6 -6 -6 -5 -5 -5 -5 -5 ----------- Run | Yrd Mat Min Mat Min Exi Min Mat Gar Mat Sto Rec Scr Fac Was Fac Low Low Zio Dee Pro Fac Was Fac Gar Matter Collected 9352 | 280 139 151 219 60 20 326 948 895 307 576 75 70 773 . 756 292 165 1249 809 77 791 . 60 314 Remotely 659 | . . . . . . . . . . . . . 78 . 225 85 . 271 . . . . . . Salvage Created 12518 | 119 417 285 442 631 . 747 1069 568 551 1386 49 100 1358 . 1251 154 208 972 535 . 953 . . 723 Parts 592 | 7 17 18 31 14 . 24 48 56 29 62 3 7 43 . 42 15 6 67 38 . 42 . . 23 Haulers Intercepted 20 | . 2 . 2 . . . 6 . 3 4 . . 2 . 1 . . . . . . . . . Recyclers Shooed 9 | . 1 . 1 1 . . 2 . . 1 . . 3 . . . . . . . . . . . Parts Field Recycled . | . . . . . . . . . . . . . . . . . . . . . . . . . Retrieved Matter . | . . . . . . . . . . . . . . . . . . . . . . . . . Parts Self-Destructed 13 | . . . . . . . . . . . . . . . . 11 2 . . . . . . . Prevented . | . . . . . . . . . . . . . . . . . . . . . . . . . Parts Restored . | . . . . . . . . . . . . . . . . . . . . . . . . . Kills | -11 -10 -10 -9 -9 -9 -8 -8 -8 -8 -8 -8 -8 -6 -6 -6 -6 -6 -6 -6 -5 -5 -5 -5 -5 ------- Run | Yrd Mat Min Mat Min Exi Min Mat Gar Mat Sto Rec Scr Fac Was Fac Low Low Zio Dee Pro Fac Was Fac Gar Combat Hostiles Destroyed 210 | . 6 14 7 6 . 20 18 14 9 23 1 . 16 . 20 8 4 5 15 . 9 . . 15 Melee 9 | . . . . . . . . . . . . . . . . . . . 1 . 6 . . 2 Guns 31 | . . . . . . . . 4 5 8 . . . . . . . 1 1 . . . . 12 Cannons 94 | . 5 4 4 3 . 3 18 10 1 11 1 . 13 . 20 . . 1 . . . . . . AOE 62 | . 1 10 3 1 . 13 . . 3 3 . . 2 . . 8 4 . 11 . 3 . . . Classes Destroyed 29 | 2 4 1 3 . . 2 . 1 1 . . 2 2 . . 2 2 4 3 . . . . . Worker 4 | . . . . . . . . . 1 . . . 1 . . . . . . . 2 . . . Builder 6 | . 1 . . . . 1 . . . 1 . . . . 1 . . . . . 2 . . . Tunneler 2 | 1 . . . . . . . . . . . . . . . . . . . . 1 . . . Hauler 20 | . 2 . 2 . . . 6 . 3 4 . . 2 . 1 . . . . . . . . . Recycler 22 | 1 . 1 1 4 . 1 1 . 1 2 . . 5 . 2 . . . . . 3 . . . Minesweeper 1 | . . . . . . . . . . . . . . . . 1 . . . . . . . . Mechanic 2 | . . . . . . . . . . . . . 1 . . . . . . . 1 . . . Operator 5 | . . . 1 . . . . . 1 . . . . . 2 . . . . . 1 . . . Watcher 11 | . 1 . 2 . . . 3 2 . 1 . . 1 . . . . . . . 1 . . . Swarmer 50 | . . 11 3 . . 4 . 4 3 3 . . . . 1 8 4 . . . 4 . . 5 Grunt 78 | . 6 3 2 4 . 14 10 1 2 9 . . 7 . 13 . . . . . 2 . . 5 Brawler 4 | . . . . . . 1 1 . . . . . . . 1 . . . . . . . . 1 Duelist 6 | . . . 1 1 . . . . . . . . 2 . 1 . . . . . . . . 1 Researcher 1 | . . . . . . . . . . . . . . . . 1 . . . . . . . . Sentry 35 | . . . 1 . . . 7 7 4 10 1 . 2 . 2 . . . . . 1 . . . Specialist 3 | . . . . . . . . 1 . . . . . . . . . . . . . . . 2 Hunter 5 | . . . . . . 1 . 1 . 1 . . 2 . . . . . . . . . . . Programmer 7 | . . . . . . . . . . . . . 3 . 2 . . . . . 2 . . . Behemoth 1 | . . . . . . . . . . . . . . . . . . . . . . . . 1 Scientist 1 | . . . . . . . . . . . . 1 . . . . . . . . . . . . Elite 1 | . . . . . . . . . . . . 1 . . . . . . . . . . . . Zionite 32 | . . . . . . . . . . . . . . . . . . 32 . . . . . . Z-Technician 5 | . . . . . . . . . . . . . . . . . . . 5 . . . . . Z-Light 6 | . . . . . . . . . . . . . . . . . . . 6 . . . . . Samaritan 2 | . . . . . . . . . . . . . . . . . 2 . . . . . . . Tinkerer 3 | . . . . . . . . . . . . . . . . . 1 2 . . . . . . Assembled 6 | . . . . . . . . . . . . . . . . . . . 6 . . . . . Golem 2 | . . . . . . . . . . . . . . . . . . . 2 . . . . . Thug 1 | . . . . . . . . . . . . . . . . . . 1 . . . . . . Martyr 1 | . . . . . . . . . . . . . . . . . . 1 . . . . . . Marauder 2 | . . . . . . . . . . . . . . . . . . 2 . . . . . . Mutant 1 | . . . . . . . . . . . . . . . . . . 1 . . . . . . Best Kill Streak 9 | 2 4 5 3 3 . 4 4 3 4 6 1 1 7 . 4 4 4 9 5 . 4 . . 5 Combat Bots Only 5 | . 4 5 3 3 . 4 4 2 3 5 1 . 4 . 4 4 4 2 5 . 4 . . 5 Max Kills in Single Turn 4 | 1 1 2 2 2 . 2 1 2 2 4 1 1 2 . 2 2 2 1 3 . 3 . . 2 Gunslinging . | . . . . . . . . . . . . . . . . . . . . . . . . . Exploded 3 | . 1 2 2 1 . 2 . . 1 3 . . 1 . . 2 2 . 3 . 3 . . . Melee 1 | . . . . . . . . . . . . . . . . . . . 1 . 1 . . 1 Uniques/NPCs Destroyed 3 | . . . . 1 . . . 1 . . . . . . . . . . 1 . . . . . YI-UF0 (-9/Mines) HV-R5K (-8/Garrison) Z-Imprinter (-6/Deep Caves) Combat | -11 -10 -10 -9 -9 -9 -8 -8 -8 -8 -8 -8 -8 -6 -6 -6 -6 -6 -6 -6 -5 -5 -5 -5 -5 -------- Run | Yrd Mat Min Mat Min Exi Min Mat Gar Mat Sto Rec Scr Fac Was Fac Low Low Zio Dee Pro Fac Was Fac Gar Hostile Shots Fired 1051 | . 41 30 16 14 . 63 77 43 16 93 6 . 96 . 105 6 19 51 95 1 54 . . 225 Missed 333 | . 9 11 6 6 . 24 19 9 6 34 2 . 33 . 39 3 7 20 20 1 14 . . 70 Hits 718 | . 32 19 10 8 . 39 58 34 10 59 4 . 63 . 66 3 12 31 75 . 40 . . 155 Melee 10 | . . . . . . . . . . . . . 1 . 3 . 6 . . . . . . . Projectile 708 | . 32 19 10 8 . 39 58 34 10 59 4 . 62 . 63 3 6 31 75 . 40 . . 155 AOE 11 | . . . . 8 . . . . . . . . . . . . . 3 . . . . . . Critical Strikes 22 | . . . . 1 . 4 1 1 2 2 . . 2 . 4 . . 1 . . 1 . . 3 Part Disruptions 1 | . . . . . . . . . . . . . 1 . . . . . . . . . . . Damage Taken 14723 | . 491 241 102 397 . 690 965 581 174 1152 58 . 1040 . 1109 103 393 524 2734 . 849 . . 3120 Core 2229 | . 40 92 9 20 . 152 28 131 24 84 . . 67 . 109 18 28 59 358 . 262 . . 748 Absorbed by Shields 163 | . . . . . . . . . . . . . 163 . . . . . . . . . . . Redirected to Shielding 43 | . . . . . . . . . . . . . . . . . . . 43 . . . . . Regen/Repaired (Parts) 752 | . 69 . 57 . . . 306 . 92 200 . . . . 28 . . . . . . . . . Core Remaining (%) 55 | 100 . 47 . . . 54 . . . . . 51 . . . . . . . 24 . . . . Volleys Fired 1043 | 5 23 20 25 20 3 51 80 91 31 100 7 5 72 2 64 14 46 249 43 1 14 2 . 75 Largest 3 | 2 2 2 2 2 2 2 2 2 2 2 2 1 2 1 2 1 1 2 3 1 1 1 . 3 Hottest 241 | 90 112 112 112 112 112 112 105 110 110 110 110 50 135 10 135 80 30 161 206 73 73 10 . 241 Shots Fired 1400 | 10 45 32 47 38 4 69 86 112 58 179 12 5 84 2 105 14 47 273 48 1 14 2 . 113 Gun 306 | 10 . . . . . 4 5 20 27 80 5 . . . 2 5 . 27 12 1 2 . . 106 Cannon 869 | . 45 24 44 38 4 41 81 92 27 96 5 2 78 . 102 3 . 173 14 . . . . . Launcher 160 | . . 8 3 . . 24 . . 4 1 . . 4 . 1 6 17 70 20 . 2 . . . Special 65 | . . . . . . . . . . 2 2 3 2 2 . . 30 3 2 . 10 2 . 7 Kinetic 352 | . . . . . . 4 81 50 27 80 5 2 48 . 52 3 . . . . . . . . Thermal 465 | 5 . . . . . . 5 62 27 96 5 . 30 . 52 5 30 27 12 1 2 . . 106 Explosive 160 | . . 8 3 . . 24 . . 4 1 . . 4 . 1 6 17 70 20 . 2 . . . Electromagnetic 388 | 5 45 24 44 38 4 41 . . . . . . . . . . . 173 14 . . . . . Robot Hit Streak 27 | 6 10 4 15 6 . 14 20 9 8 15 4 3 15 4 15 7 8 7 4 . 8 2 . 27 Robot Miss Streak 7 | 2 3 3 2 1 . 2 3 4 2 3 1 1 2 . 2 1 5 4 3 . 2 . . 7 Penetration Max 1 | . . . . . . . 1 . . . . . 1 . 1 . . . . . . . . . Secondary Targets 2 | . . . . . . . . . . . . . . . . . . . . . . . . 2 Max Gunslinging Chain 1 | . . . . . . . . . . . . . . . . . . . . . . . . 1 Shots Hit Robots 826 | 6 28 14 34 28 4 47 64 51 37 119 8 3 55 2 65 8 26 73 27 . 55 2 . 70 Core Hits 485 | 3 11 20 19 12 . 38 27 20 23 40 1 2 39 . 38 19 18 50 36 . 20 . . 49 Critical Kills 3 | . . . . . . . . . . 1 . . 2 . . . . . . . . . . . Critical Parts Destroyed 4 | . . . . . . 1 . . 1 2 . . . . . . . . . . . . . . Critical Strikes 32 | . . . 1 1 . 2 5 1 1 3 . . 6 . 7 1 . . . . 3 . . 1 Burn 1 | . . . . . . . . . . . . . . . . . . . . . . . . 1 Meltdown 3 | . . . . . . . . . . 1 . . 2 . . . . . . . . . . . Destroy 3 | . . . . . . . . . 1 2 . . . . . . . . . . . . . . Blast 18 | . . . . . . . 5 1 . . . . 4 . 7 1 . . . . . . . . Corrupt 3 | . . . 1 1 . 1 . . . . . . . . . . . . . . . . . . Smash 1 | . . . . . . 1 . . . . . . . . . . . . . . . . . . Sever 3 | . . . . . . . . . . . . . . . . . . . . . 3 . . . Melee Attacks 111 | . . . . 2 4 2 2 . . . . . . . . . . . 21 . 59 . 2 19 Impact 6 | . . . . 2 . 2 2 . . . . . . . . . . . . . . . . . Slashing 91 | . . . . . . . . . . . . . . . . . . . 21 . 59 . 2 9 Piercing 10 | . . . . . . . . . . . . . . . . . . . . . . . . 10 Sneak Attacks 26 | . . . . 2 4 1 1 . . . . . . . . . . . 5 . 13 . . . Combat Hostiles . | . . . . . . . . . . . . . . . . . . . . . . . . . Follow-up Attacks . | . . . . . . . . . . . . . . . . . . . . . . . . . Damage Inflicted 33844 | 78 906 837 1048 801 . 2026 3282 1587 1256 3128 150 108 3554 . 3336 571 1193 2256 2646 . 3241 . . 1840 Guns 4322 | 78 . . . . . 36 58 281 391 1260 95 . . . 32 100 . 408 62 . . . . 1521 Cannons 16899 | . 667 269 755 595 . 777 3080 1306 520 1664 55 108 2446 . 3206 91 . 1138 222 . . . . . Explosions 8136 | . 239 568 293 100 . 1127 . . 345 204 . . 1062 . 98 380 824 710 1744 . 442 . . . Melee 4072 | . . . . 106 . 86 144 . . . . . . . . . . . 618 . 2799 . . 319 Ramming 46 | . . . . . . . . . . . . . 46 . . . . . . . . . . . Kinetic 10418 | . . . . . . 36 3055 918 391 1260 95 108 1921 . 2543 91 . . . . . . . . Thermal 7637 | 25 239 67 63 100 . 33 83 669 520 1664 55 . 857 . 695 100 369 515 62 . . . . 1521 Explosive 7134 | . . 501 230 . . 1094 . . 345 204 . . 669 . 98 380 824 603 1744 . 442 . . . Electromagnetic 4537 | 53 667 269 755 595 . 777 . . . . . . 61 . . . . 1138 222 . . . . . Impact 336 | . . . . 106 . 86 144 . . . . . . . . . . . . . . . . . Slashing 3678 | . . . . . . . . . . . . . . . . . . . 618 . 2799 . . 261 Piercing 58 | . . . . . . . . . . . . . . . . . . . . . . . . 58 Highest Corruption 10 | . . . . . . . 2 2 2 3 3 . 1 10 10 1 1 4 4 4 4 5 5 . Average Corruption 2 | . . . . . . . 2 2 2 2 3 . 1 10 2 1 1 3 4 4 3 5 3 . Corruption Purged 20 | . . . . . . . . . . . . . 1 . 10 . . . . . 4 . 5 . Corruption Blocked . | . . . . . . . . . . . . . . . . . . . . . . . . . Effects 161 | . . . . . . . 8 15 11 26 9 . 2 4 14 4 6 14 37 1 7 1 2 . Message Errors 41 | . . . . . . . 2 3 2 3 7 . 1 1 1 1 2 4 12 . 2 . . . Matter Fused 38 | . . . . . . . 3 5 5 8 1 . . . 5 1 2 3 3 . 1 . 1 . Heat Flow Errors 17 | . . . . . . . 1 . 2 2 1 . . 1 3 1 . 1 5 . . . . . Energy Discharges 20 | . . . . . . . . 1 2 3 . . . 1 . . 1 2 9 . 1 . . . Parts Rejected 2 | . . . . . . . . . . . . . . . 1 . . . . . . 1 . . Parts Fused 1 | . . . . . . . . . . . . . . . 1 . . . . . . . . . Data Loss (minor) 18 | . . . . . . . 1 2 . 6 . . . . . . . 3 2 . 3 . 1 . Data Loss (major) 11 | . . . . . . . . 3 . 3 . . . 1 1 1 . . 2 . . . . . Misfires 8 | . . . . . . . 1 1 . . . . 1 . 1 . 1 . 3 . . . . . Alerts 3 | . . . . . . . . . . . . . . . 1 . . . 1 1 . . . . Weapon Failures 2 | . . . . . . . . . . 1 . . . . . . . 1 . . . . . . Overload Shots 2 | . . . . . . . . . . . . . . . . . . . . . . . . 2 Overflow Damage 1929 | . . 35 59 40 . 56 270 . 16 58 . . 244 . 159 . 134 25 210 . 623 . . . Projectiles 647 | . . . 30 . . . 191 . . 11 . . 175 . 159 . 62 19 . . . . . . Explosions 475 | . . 35 29 12 . . . . 16 47 . . 53 . . . 72 6 139 . 66 . . . Melee 807 | . . . . 28 . 56 79 . . . . . 16 . . . . . 71 . 557 . . . Knockbacks 41 | . . . . 1 . . 14 2 . . . . 13 . 10 1 . . . . . . . . Impact 3 | . . . . 1 . . 1 . . . . . 1 . . . . . . . . . . . Kinetic 34 | . . . . . . . 12 2 . . . . 11 . 8 1 . . . . . . . . Secondary 4 | . . . . . . . 1 . . . . . 1 . 2 . . . . . . . . . Self-Inflicted Damage 962 | . 76 65 . 54 . 36 61 . 13 41 . . . . . 57 293 49 173 . 44 . . . Shots 36 | . 2 5 . 2 . 2 1 . 1 1 . . . . . 3 9 2 6 . 2 . . . Rammed . | . . . . . . . . . . . . . . . . . . . . . . . . . Targets Rammed 1 | . . . . . . . . . . . . . 1 . . . . . . . . . . . Kicked 1 | . . . . . . . . . . . . . 1 . . . . . . . . . . . Crushed . | . . . . . . . . . . . . . . . . . . . . . . . . . Highest Temperature 433 | 90 311 153 126 369 49 414 242 61 233 220 186 . 123 229 235 125 6 433 398 42 149 . 220 154 Average Temperature 85 | 41 158 62 49 103 26 193 41 21 40 19 41 . 57 133 79 60 6 101 96 23 60 . 91 23 Received Heat Transfer 3529 | . 240 39 30 30 . 387 432 90 81 333 18 . 76 . 393 . . 54 573 . 81 . . 672 Effects 13 | . 2 . . . . 5 . . . . . . . . . . . 4 2 . . . . . Shutdowns 2 | . . . . . . . . . . . . . . . . . . 1 1 . . . . . Energy Bleed 3 | . 1 . . . . . . . . . . . . . . . . 1 1 . . . . . Interference 3 | . . . . . . 1 . . . . . . . . . . . 2 . . . . . . Matter Decay 1 | . 1 . . . . . . . . . . . . . . . . . . . . . . . Short Circuit 1 | . . . . . . 1 . . . . . . . . . . . . . . . . . . Damage (minor) 3 | . . . . . . 3 . . . . . . . . . . . . . . . . . . Siege Activations . | . . . . . . . . . . . . . . . . . . . . . . . . . Martial Activations . | . . . . . . . . . . . . . . . . . . . . . . . . . Shielding Activations . | . . . . . . . . . . . . . . . . . . . . . . . . . Robots Disrupted 1 | . . 1 . . . . . . . . . . . . . . . . . . . . . . Combat Hostiles 1 | . . 1 . . . . . . . . . . . . . . . . . . . . . . Robots Corrupted 14 | . 2 . 1 2 . 5 . . . . . . . . . . . 2 2 . . . . . Combat Hostiles 9 | . . . . 2 . 4 . . . . . . . . . . . 1 2 . . . . . Parts Fried 26 | . 3 . 2 4 . 9 . . . . . . . . . . . 8 . . . . . . Impact Corruptions 7 | . . . . 1 . 3 2 . . . . . 1 . . . . . . . . . . . Robots Melted 6 | . . . . . . . . . . 1 . . 2 . . . . 2 . . . . . 1 Combat Hostiles 5 | . . . . . . . . . . 1 . . 1 . . . . 2 . . . . . 1 Parts Melted 40 | . . . . 1 . . 1 1 1 6 . . 6 . 2 . . 13 1 . . . . 8 Heat Transferred 13092 | 74 350 100 100 250 . 50 150 655 1000 3200 100 . 842 . 852 300 851 1006 74 . . . . 3138 Parts Sabotaged . | . . . . . . . . . . . . . . . . . . . . . . . . . Parts Stolen 4 | . . . . . . . . . . . . . . . . . 4 . . . . . . . Parts Stripped . | . . . . . . . . . . . . . . . . . . . . . . . . . Power Chain Reactions 15 | . 5 2 2 3 . . . . . . . . 1 . . . . 2 . . . . . . Alert | -11 -10 -10 -9 -9 -9 -8 -8 -8 -8 -8 -8 -8 -6 -6 -6 -6 -6 -6 -6 -5 -5 -5 -5 -5 ------- Run | Yrd Mat Min Mat Min Exi Min Mat Gar Mat Sto Rec Scr Fac Was Fac Low Low Zio Dee Pro Fac Was Fac Gar Maximum Alert Level 4 | . . . 1 . . 1 1 4 2 1 . . 1 . . . . . . . . . . 1 Low Security (%) 64 | 100 100 100 75 100 . 75 44 . . 44 100 . 57 100 100 . . . . . 100 100 100 73 Level 1 24 | . . . 24 . . 25 55 12 64 55 . . 42 . . . . . . . . . . 26 Level 2 4 | . . . . . . . . 22 35 . . . . . . . . . . . . . . . Level 3 2 | . . . . . . . . 26 . . . . . . . . . . . . . . . . Level 4 4 | . . . . . . . . 38 . . . . . . . . . . . . . . . . Level 5 . | . . . . . . . . . . . . . . . . . . . . . . . . . High Security . | . . . . . . . . . . . . . . . . . . . . . . . . . Max Security . | . . . . . . . . . . . . . . . . . . . . . . . . . Peak Influence 1314 | 5 181 175 279 74 . 314 372 1314 670 277 23 . 270 84 192 . . . . . 109 16 12 248 Initial 640 | . 3 . 52 69 . . 115 204 640 131 21 . . 84 30 . . . . . . 16 4 1 Average 212 | 1 63 109 151 19 . 130 215 906 417 190 4 . 122 67 77 . . . . . 33 11 1 100 Influence Increases 7194 | 10 263 451 481 193 . 619 735 1110 419 655 90 . 601 . 612 164 72 . . . 349 . 14 356 Destroy 0b10 Robot/C 3630 | . 120 280 180 120 . 400 360 550 180 345 15 . 240 . 300 120 60 . . . 135 . . 225 Destroy 0b10 Robot/NC 336 | 10 20 5 30 20 . 10 50 15 28 32 . . 40 . 24 4 4 . . . 44 . . . Destroy Leader 764 | . 26 60 38 20 . 70 118 30 72 130 . . 70 . 56 16 8 . . . 34 . . 16 Allied During Kill 124 | . . 9 10 10 . . . 54 36 . . . . . . . . . . . . . . 5 Successful Hack 257 | . 6 . 48 6 . . 11 24 19 20 26 . 9 . 42 . . . . . 46 . . . Select Force Hacks 46 | . . . . . . . . . . . 46 . . . . . . . . . . . . . Disable Machine 672 | . 15 30 120 . . 45 90 . 36 60 . . 168 . 72 . . . . . 12 . 12 12 Anti-Garrison Action 351 | . . . . . . . . 313 . . . . . . . . . . . . . . . 38 Destroy Structure 750 | . 16 52 55 17 . 79 76 124 48 44 3 . 74 . 70 . . . . . 54 . 2 36 Partial Spotted 12 | . . . . . . . . . . . . . . . . . . . . . 12 . . . Lose Combat Pursuer 252 | . 60 15 . . . 15 30 . . 24 . . . . 48 24 . . . . 12 . . 24 Influence Decreases 7026 | 5 268 316 437 372 . 324 716 110 1422 910 146 . 360 197 480 340 72 . . . 301 42 18 190 Entered New Map 1646 | . 2 . 83 110 . . 180 110 674 180 35 . . 157 14 66 . . . . . 32 2 1 Time Decay 4274 | 5 256 286 334 232 . 294 506 . 278 550 111 . 330 40 456 274 52 . . . 244 10 16 . Lost Part 386 | . 10 30 . 10 . 30 30 . . 10 . . 30 . 10 . 20 . . . 37 . . 169 Lost Ally 120 | . . . 20 20 . . . . 20 20 . . . . . . . . . . 20 . . 20 Purge Threat 600 | . . . . . . . . . 450 150 . . . . . . . . . . . . . . Squads Dispatched 23 | . 1 1 1 . . . 1 . . 3 . . 3 . 7 . . . . . 5 . 1 . Investigation 10 | . 1 1 . . . . 1 . . 1 . . . . 4 . . . . . 2 . . . Extermination 6 | . . . . . . . . . . . . . 2 . 2 . . . . . 1 . 1 . Reinforcement 6 | . . . 1 . . . . . . 2 . . . . 1 . . . . . 2 . . . Assault . | . . . . . . . . . . . . . . . . . . . . . . . . . Garrison 1 | . . . . . . . . . . . . . 1 . . . . . . . . . . . Intercept . | . . . . . . . . . . . . . . . . . . . . . . . . . Searches Triggered . | . . . . . . . . . . . . . . . . . . . . . . . . . Construction Impeded 3 | . . . . . . . . . . 1 . . . . 1 . . . . . 1 . . . Haulers Reinforced 1 | . . . . . . . . . . . . . . . . . . . . . 1 . . . Active Scanning Responses . | . . . . . . . . . . . . . . . . . . . . . . . . . Cargo Convoy Interrupts . | . . . . . . . . . . . . . . . . . . . . . . . . . Stealth | -11 -10 -10 -9 -9 -9 -8 -8 -8 -8 -8 -8 -8 -6 -6 -6 -6 -6 -6 -6 -5 -5 -5 -5 -5 --------- Run | Yrd Mat Min Mat Min Exi Min Mat Gar Mat Sto Rec Scr Fac Was Fac Low Low Zio Dee Pro Fac Was Fac Gar Distress Signals 17 | . 1 . 2 . . . 4 3 3 3 . . . . . . . . . . 1 . . . Communications Jammed . | . . . . . . . . . . . . . . . . . . . . . . . . . Distress Signals . | . . . . . . . . . . . . . . . . . . . . . . . . . Times Spotted 365 | . 13 16 17 11 . 21 29 28 14 29 1 1 19 2 26 8 8 30 33 3 16 6 . 34 Peak Tracking Total 13 | . 6 3 5 12 9 4 5 5 3 4 1 1 4 2 7 4 4 2 13 3 5 5 . 12 Tactical Retreats 22 | . 2 1 . . . 1 2 . . 2 . . . . 3 1 . 3 5 . 1 . . 1 Traps | -11 -10 -10 -9 -9 -9 -8 -8 -8 -8 -8 -8 -8 -6 -6 -6 -6 -6 -6 -6 -5 -5 -5 -5 -5 ------- Run | Yrd Mat Min Mat Min Exi Min Mat Gar Mat Sto Rec Scr Fac Was Fac Low Low Zio Dee Pro Fac Was Fac Gar Traps Triggered 11 | . . . 2 . . . 1 4 . 1 . . 1 . 1 . . . . . 1 . . . Indirectly . | . . . . . . . . . . . . . . . . . . . . . . . . . Trap Hack Attempts . | . . . . . . . . . . . . . . . . . . . . . . . . . Triggered . | . . . . . . . . . . . . . . . . . . . . . . . . . Disarmed . | . . . . . . . . . . . . . . . . . . . . . . . . . Reprogrammed . | . . . . . . . . . . . . . . . . . . . . . . . . . Reused 10 | . . . . . . . . . . . . . . . . . . 6 4 . . . . . Traps Extracted . | . . . . . . . . . . . . . . . . . . . . . . . . . Installed 10 | . . . . . . . . . . . . . . . . . . 6 4 . . . . . Triggered . | . . . . . . . . . . . . . . . . . . . . . . . . . Most Traps Carried 10 | . . . . . . . . . . . . . . . . 10 10 10 4 . . . . . Machines | -11 -10 -10 -9 -9 -9 -8 -8 -8 -8 -8 -8 -8 -6 -6 -6 -6 -6 -6 -6 -5 -5 -5 -5 -5 ---------- Run | Yrd Mat Min Mat Min Exi Min Mat Gar Mat Sto Rec Scr Fac Was Fac Low Low Zio Dee Pro Fac Was Fac Gar Machines Disabled 66 | . 1 2 8 . 2 3 6 4 3 5 . . 14 . 6 . . 6 1 1 1 . 1 2 Max in Single Turn 9 | . 1 1 2 . 1 2 3 1 1 1 . . 9 . 3 . . 2 1 1 1 . 1 1 Garrison Access 4 | . . . . . . . . . . 1 . . 2 . . . . . . . 1 . . . Garrison Relay 5 | . . . . . . . . 4 . . . . . . . . . . . . . . . 1 Machines Repaired . | . . . . . . . . . . . . . . . . . . . . . . . . . Machines Dismantled 3 | . . . . . . . . . . . . . . . . . . 3 . . . . . . Machines Sabotaged . | . . . . . . . . . . . . . . . . . . . . . . . . . Overloaded Fab Kills . | . . . . . . . . . . . . . . . . . . . . . . . . . Hacking | -11 -10 -10 -9 -9 -9 -8 -8 -8 -8 -8 -8 -8 -6 -6 -6 -6 -6 -6 -6 -5 -5 -5 -5 -5 --------- Run | Yrd Mat Min Mat Min Exi Min Mat Gar Mat Sto Rec Scr Fac Was Fac Low Low Zio Dee Pro Fac Was Fac Gar Machines Accessed 106 | . 4 1 7 2 2 . 14 6 7 13 8 . 10 . 15 1 . . . . 13 . 3 . Terminals 63 | . 3 . 3 2 . . 10 6 6 9 6 . 5 . 7 . . . . . 5 . 1 . Fabricators 6 | . . . . . . . . . . . . . . . 4 . . . . . 2 . . . Repair Stations 11 | . 1 . 2 . . . 2 . 1 2 . . . . 2 . . . . . . . 1 . Recycling Units 9 | . . . 1 . . . . . . 1 2 . 1 . . . . . . . 4 . . . Scanalyzers 7 | . . . 1 . . . 1 . . . . . 2 . 2 . . . . . 1 . . . Garrison Access 6 | . . . . . . . 1 . . 1 . . 2 . . . . . . . 1 . 1 . Total Hacks 306 | . 10 1 34 6 5 . 38 10 19 47 24 . 27 . 38 1 . . . . 40 . 6 . Successful 170 | . 6 1 21 2 5 . 12 5 9 28 18 . 11 . 21 1 . . . . 28 . 2 . Failed 135 | . 3 . 13 4 . . 26 5 10 19 6 . 16 . 17 . . . . . 12 . 4 . Catastrophic 24 | . . . 1 1 . . 5 2 1 2 . . 5 . 6 . . . . . 1 . . . Database Lockouts 1 | . 1 . . . . . . . . . . . . . . . . . . . . . . . Manual 114 | . 4 . 2 6 1 . 11 1 10 20 16 . 15 . 9 . . . . . 19 . . . Terminals 182 | . 7 . 6 6 . . 25 10 17 34 20 . 17 . 17 . . . . . 21 . 2 . Fabricators 12 | . . . . . . . . . . . . . . . 8 . . . . . 4 . . . Repair Stations 35 | . 3 . 8 . . . 7 . 2 8 . . . . 5 . . . . . . . 2 . Recycling Units 25 | . . . 8 . . . . . . 3 4 . 2 . . . . . . . 8 . . . Scanalyzers 31 | . . . 12 . . . 2 . . . . . 4 . 8 . . . . . 5 . . . Garrison Access 14 | . . . . . . . 4 . . 2 . . 4 . . . . . . . 2 . 2 . Terminal Hacks 59 | . 3 1 3 2 5 . 5 4 6 11 6 . 1 . 5 1 . . . . 6 . . . Record 4 | . . . . . 4 . . . . . . . . . . . . . . . . . . . Part Schematic 3 | . . . . . . . . . . . 3 . . . . . . . . . . . . . Robot Analysis 3 | . 1 . . 2 . . . . . . . . . . . . . . . . . . . . Prototype ID Bank 6 | . . . 1 . . . 3 . . 1 1 . . . . . . . . . . . . . Open Door 6 | . . 1 . . . . . 2 . 2 . . . . . 1 . . . . . . . . Branch Access Points 5 | . . . 1 . . . 1 . 1 . . . . . 1 . . . . . 1 . . . Emergency Access Points 1 | . . . . . . . . 1 . . . . . . . . . . . . . . . . Terminal Index 3 | . . . . . . . . . . 1 . . 1 . 1 . . . . . . . . . Garrison Index 1 | . . . . . . . . . . . . . . . . . . . . . 1 . . . Unreport Threat 4 | . . . . . . . . . 3 1 . . . . . . . . . . . . . . Locate Traps 10 | . 2 . . . . . 1 . . 4 . . . . 2 . . . . . 1 . . . Hauler Manifests 2 | . . . . . . . . . . 1 . . . . . . . . . . 1 . . . Registered Components 1 | . . . . . . . . . . . . . . . . . . . . . 1 . . . Zone Layout 8 | . . . 1 . . . . . 2 1 2 . . . 1 . . . . . 1 . . . Garrison Registry 1 | . . . . . . . . 1 . . . . . . . . . . . . . . . . Proto ID Catalog 1 | . . . . . 1 . . . . . . . . . . . . . . . . . . . Fabricator Hacks 5 | . . . . . . . . . . . . . . . 4 . . . . . 1 . . . Network Status 1 | . . . . . . . . . . . . . . . 1 . . . . . . . . . Load Schematic 3 | . . . . . . . . . . . . . . . 2 . . . . . 1 . . . Build 1 | . . . . . . . . . . . . . . . 1 . . . . . . . . . Repair Station Hacks 23 | . 3 . 5 . . . 4 . 2 6 . . . . 3 . . . . . . . . . Scan Component 13 | . 2 . 3 . . . 2 . 1 3 . . . . 2 . . . . . . . . . Repair 10 | . 1 . 2 . . . 2 . 1 3 . . . . 1 . . . . . . . . . Recycling Unit Hacks 8 | . . . 1 . . . . . . . 2 . 1 . . . . . . . 4 . . . Report Inventory 6 | . . . 1 . . . . . . . 2 . 1 . . . . . . . 2 . . . Retrieve Components 2 | . . . . . . . . . . . . . . . . . . . . . 2 . . . Scanalyzer 22 | . . . 11 . . . 1 . . . . . 1 . 5 . . . . . 4 . . . Insert Component 9 | . . . 4 . . . . . . . . . . . 4 . . . . . 1 . . . Analyze 7 | . . . 5 . . . . . . . . . . . 1 . . . . . 1 . . . Retrieve Study 6 | . . . 2 . . . 1 . . . . . 1 . . . . . . . 2 . . . Garrison Access Hacks 11 | . . . . . . . 1 . . 2 . . 4 . . . . . . . 2 . 2 . Unlock Access 2 | . . . . . . . 1 . . . . . . . . . . . . . . . 1 . Seal Access 4 | . . . . . . . . . . 1 . . 2 . . . . . . . 1 . . . Coupler Status 5 | . . . . . . . . . . 1 . . 2 . . . . . . . 1 . 1 . Unauthorized Hacks 42 | . . . 1 . . . 1 1 1 9 10 . 4 . 4 . . . . . 11 . . . Terminals 33 | . . . . . . . 1 1 1 8 8 . 4 . 3 . . . . . 7 . . . Track 1 | . . . . . . . . . . . 1 . . . . . . . . . . . . . Assimilate 2 | . . . . . . . . . . . . . . . . . . . . . 2 . . . Botnet 12 | . . . . . . . 1 1 1 2 2 . 1 . 2 . . . . . 2 . . . Operators 3 | . . . . . . . . . . . . . 1 . 1 . . . . . 1 . . . Skim 15 | . . . . . . . . . . 6 5 . 2 . . . . . . . 2 . . . Fabricators 2 | . . . . . . . . . . . . . . . 1 . . . . . 1 . . . Recompile 2 | . . . . . . . . . . . . . . . 1 . . . . . 1 . . . Repair Stations . | . . . . . . . . . . . . . . . . . . . . . . . . . Recycling Units 7 | . . . 1 . . . . . . 1 2 . . . . . . . . . 3 . . . Recyclers 3 | . . . . . . . . . . 1 . . . . . . . . . . 2 . . . Mask 2 | . . . 1 . . . . . . . . . . . . . . . . . 1 . . . Tunnel 2 | . . . . . . . . . . . 2 . . . . . . . . . . . . . Scanalyzers . | . . . . . . . . . . . . . . . . . . . . . . . . . Garrison Access . | . . . . . . . . . . . . . . . . . . . . . . . . . Data Cores Recovered 2 | . . . . . . . . . . . . . . . 1 . . . . . 1 . . . Used . | . . . . . . . . . . . . . . . . . . . . . . . . . Hacking Detections 89 | . 3 . 6 2 . . 14 5 7 9 5 . 9 . 13 . . . . . 13 . 3 . Full Trace Events 6 | . . . . . . . . 1 . 1 . . . . 3 . . . . . 1 . . . Feedback Events 1 | . . . . . . . . . . 1 . . . . . . . . . . . . . . Corruption 1 | . . . . . . . . . . 1 . . . . . . . . . . . . . . Feedback Blocked . | . . . . . . . . . . . . . . . . . . . . . . . . . Robot Schematics Acquired . | . . . . . . . . . . . . . . . . . . . . . . . . . Robots Built . | . . . . . . . . . . . . . . . . . . . . . . . . . Authchips . | . . . . . . . . . . . . . . . . . . . . . . . . . Time . | . . . . . . . . . . . . . . . . . . . . . . . . . Total Robot Build Rating . | . . . . . . . . . . . . . . . . . . . . . . . . . Part Schematics Acquired 12 | . . . 3 . . . . . . . 3 . . . 1 . . . . . 1 . . 4 Parts Built 1 | . . . . . . . . . . . . . . . 1 . . . . . . . . . Authchips 1 | . . . . . . . . . . . . . . . 1 . . . . . . . . . Time 36 | . . . . . . . . . . . . . . . 36 . . . . . . . . . Total Part Build Rating 3 | . . . . . . . . . . . . . . . 3 . . . . . . . . . Part Studies Acquired 6 | . . . 2 . . . 1 . . . . . 1 . . . . . . . 2 . . . Parts Repaired 9 | . 1 . 2 . . . 2 . 1 2 . . . . 1 . . . . . . . . . Time 371 | . 32 . 48 . . . 70 . 34 144 . . . . 43 . . . . . . . . . Parts Recycled . | . . . . . . . . . . . . . . . . . . . . . . . . . Recycled Matter . | . . . . . . . . . . . . . . . . . . . . . . . . . Retrieved Matter . | . . . . . . . . . . . . . . . . . . . . . . . . . Retrieved Components 5 | . . . . . . . . . . . . . . . . . . . . . 5 . . . Parts Scanalyzed 7 | . . . 4 . . . . . . . . . . . 2 . . . . . 1 . . . Part Schematics Acquired 5 | . . . 3 . . . . . . . . . . . 1 . . . . . 1 . . . Parts Damaged 2 | . . . . . . . . . . . . . . . 2 . . . . . . . . . Bothacking | -11 -10 -10 -9 -9 -9 -8 -8 -8 -8 -8 -8 -8 -6 -6 -6 -6 -6 -6 -6 -5 -5 -5 -5 -5 ------------ Run | Yrd Mat Min Mat Min Exi Min Mat Gar Mat Sto Rec Scr Fac Was Fac Low Low Zio Dee Pro Fac Was Fac Gar Used RIF Installer 2 | . . . . . . . . 2 . . . . . . . . . . . . . . . . Threat Obfuscator 1 | . . . . . . . . 1 . . . . . . . . . . . . . . . . Robots Hacked 19 | . . . . . 4 . . . . 2 1 1 2 2 . . . . . . 5 2 . . Non-combat 12 | . . . . . 3 . . . . 2 1 . 1 . . . . . . . 5 . . . Combat 7 | . . . . . 1 . . . . . . 1 1 2 . . . . . . . 2 . . Robot Hacks Applied 21 | . . . . . 4 . . . . 2 1 1 2 2 . . . . . . 7 2 . . parse_system 5 | . . . . . 4 . . . . . . 1 . . . . . . . . . . . . no_distress 1 | . . . . . . . . . . . . . . . . . . . . . 1 . . . find_chute 2 | . . . . . . . . . . . . . 1 . . . . . . . 1 . . . ignore_repairs 1 | . . . . . . . . . . . . . . . . . . . . . 1 . . . find_fabricator 1 | . . . . . . . . . . . . . . . . . . . . . 1 . . . drop_inventory 3 | . . . . . . . . . . . . . . . . . . . . . 3 . . . ignore_targets 4 | . . . . . . . . . . . . . . 2 . . . . . . . 2 . . amplify_resonance 1 | . . . . . . . . . . . . . 1 . . . . . . . . . . . streamctrl_low 2 | . . . . . . . . . . 2 . . . . . . . . . . . . . . formatsys_low 1 | . . . . . . . . . . . 1 . . . . . . . . . . . . . Relay Couplers Released 25 | . . . . . . . . 16 . 1 . . 1 . . . . . . . 3 . . 4 Machine Destruction 25 | . . . . . . . . 16 . 1 . . 1 . . . . . . . 3 . . 4 Attached 5 | . . . . . . . . . . 1 . . 1 1 . . . . . . 2 . . . Fabnet Peak Effective % . | . . . . . . . . . . . . . . . . . . . . . . . . . Robots Rewired 6 | . . . . . . . . 2 . . . . . . . . . . . . . . . 4 Allies Hacked . | . . . . . . . . . . . . . . . . . . . . . . . . . Hacks Repelled . | . . . . . . . . . . . . . . . . . . . . . . . . . Allies | -11 -10 -10 -9 -9 -9 -8 -8 -8 -8 -8 -8 -8 -6 -6 -6 -6 -6 -6 -6 -5 -5 -5 -5 -5 -------- Run | Yrd Mat Min Mat Min Exi Min Mat Gar Mat Sto Rec Scr Fac Was Fac Low Low Zio Dee Pro Fac Was Fac Gar Total Allies 18 | . . 1 . 4 . . . 3 . 2 1 . . . . . . . . . 2 1 . 4 Largest Group 4 | . . 1 1 3 . . . 3 2 2 1 1 . . . . . . . . 1 1 . 4 Highest-Rated Group 213 | . . 31 31 40 . . . 213 64 25 8 8 . . . . . . . . 26 31 . 196 Highest-Rated Ally 149 | . . 31 31 31 . . . 149 39 25 8 8 . . . . . . . . 26 31 . 49 Total Orders 23 | . . . . . . . . . . 14 . 5 . . . . . 3 1 . . . . . STAY 18 | . . . . . . . . . . 13 . 5 . . . . . . . . . . . . FOLLOW 1 | . . . . . . . . . . 1 . . . . . . . . . . . . . . EXPLORE 2 | . . . . . . . . . . . . . . . . . . 2 . . . . . . RETURN 2 | . . . . . . . . . . . . . . . . . . 1 1 . . . . . Ally Attacks 109 | . . 4 10 19 . . . 36 19 . . . . . . . . . . . . 11 . 10 Total Damage 3362 | . . 63 123 182 . . . 2144 374 . . . . . . . . . . . . 169 . 307 Kills 22 | . . . 2 1 . . . 15 4 . . . . . . . . . . . . . . . Allies Corrupted . | . . . . . . . . . . . . . . . . . . . . . . . . . Allies Melted . | . . . . . . . . . . . . . . . . . . . . . . . . . Intel | -11 -10 -10 -9 -9 -9 -8 -8 -8 -8 -8 -8 -8 -6 -6 -6 -6 -6 -6 -6 -5 -5 -5 -5 -5 ------- Run | Yrd Mat Min Mat Min Exi Min Mat Gar Mat Sto Rec Scr Fac Was Fac Low Low Zio Dee Pro Fac Was Fac Gar Active Infowar (turns) 9356 | 5 8 . . . . . . . . . . . 237 84 1171 638 878 2679 1642 75 819 38 154 928 Optics 9341 | . . . . . . . . . . . . . 235 84 1171 638 878 2679 1642 75 819 38 154 928 Sensors 3872 | . . . . . . . . . . . . . . . . 635 878 1495 177 75 432 . 153 27 Terrain 37 | 5 8 . . . . . . . . . . . . . . . . . 24 . . . . . Structural 18 | . . . . . . . . . . . . . . . . . . . . . 18 . . . Jamming 54 | . . . . . . . . . . . . . 54 . . . . . . . . . . . Robot Analysis Total 3 | . 1 . . 2 . . . . . . . . . . . . . . . . . . . . Derelict Logs Recovered 8 | . . 3 . 1 . . . . . . . . . . . 1 1 1 . 1 . . . . Drone Launches 4 | . . . . . . . . . . . . . . . . . . 2 2 . . . . . Drone Recoveries 4 | . . . . . . . . . . . . . . . . . . 2 2 . . . . . Exploration | -11 -10 -10 -9 -9 -9 -8 -8 -8 -8 -8 -8 -8 -6 -6 -6 -6 -6 -6 -6 -5 -5 -5 -5 -5 ------------- Run | Yrd Mat Min Mat Min Exi Min Mat Gar Mat Sto Rec Scr Fac Was Fac Low Low Zio Dee Pro Fac Was Fac Gar Turns Passed 21554 | 74 674 632 758 937 467 652 1376 1522 618 1592 610 1435 1101 84 1171 638 878 2679 1642 75 819 38 154 928 Spaces Moved 14851 | 47 366 449 463 649 361 473 911 1028 398 885 491 1050 756 76 805 551 436 538 2072 203 1202 90 239 312 Core 2 | 2 . . . . . . . . . . . . . . . . . . . . . . . . Treads 248 | . 56 . . . . . 11 . . . . . . . . . . . . . . . . 181 Legs 6458 | . . . . . . . . 111 398 885 491 1050 756 76 805 551 436 538 265 . . . . 96 Wheels 4642 | 45 310 449 463 649 361 473 900 917 . . . . . . . . . . . . 75 . . . Hover 3501 | . . . . . . . . . . . . . . . . . . . 1807 203 1127 90 239 35 Flight . | . . . . . . . . . . . . . . . . . . . . . . . . . Fastest Speed 20 | 50 90 120 120 125 95 95 95 110 115 113 115 115 103 103 103 104 104 112 44 22 20 35 35 35 Average Speed 100 | 88 130 120 126 125 122 95 107 114 115 114 115 115 112 103 103 104 147 156 55 32 37 35 35 203 Slowest Speed 400 | 90 240 120 135 125 125 95 400 250 115 115 115 115 185 103 104 104 181 187 350 44 300 35 35 320 Overloaded Moves 11 | . . . . . . . . . . . . . . . . . . . . . 11 . . . Propulsion Burnouts . | . . . . . . . . . . . . . . . . . . . . . . . . . Robots Hopped . | . . . . . . . . . . . . . . . . . . . . . . . . . Potential Cave-ins . | . . . . . . . . . . . . . . . . . . . . . . . . . Cave-ins Triggered . | . . . . . . . . . . . . . . . . . . . . . . . . . Exploration Rate (%) 62 | 5 38 93 45 99 70 98 81 97 35 96 81 54 25 85 23 77 56 88 92 47 33 91 10 34 Regions Visited 24 Branch Regions 12 Pre-discovered Areas 10 | . . 1 . 1 1 . . . . 1 4 . . . . 1 . . . 1 . . . . Known Exits Taken 13 | . . . 1 . . . 1 . 1 1 1 1 . . 1 1 1 1 1 1 . . 1 . Unknown Exits Taken 6 | 1 1 1 . 1 1 1 . . . . . . . . . . . . . . . . . . Scrap Searched 18 | . . 1 . 2 . 1 . . . . . 4 . . . 4 1 2 . 3 . . . . Spaces Dug 263 | . . 19 . . . 5 . 6 34 15 . . 6 . 12 22 42 7 65 . 26 . 1 3 Terrain Destroyed 1192 | . 16 67 58 17 . 116 84 12 56 37 3 . 77 . 71 33 109 229 174 . 28 . 1 4 Melee 17 | . . . . . . . . . . . . . . . . . . . 3 . 10 . 1 3 Projectile 144 | . . . . . . . 29 12 10 28 3 . 19 . 29 2 . . 9 . 2 . . 1 AOE 1031 | . 16 67 58 17 . 116 55 . 46 9 . . 58 . 42 31 109 229 162 . 16 . . . Terrain Rammed . | . . . . . . . . . . . . . . . . . . . . . . . . . Walls Destroyed . | . . . . . . . . . . . . . . . . . . . . . . . . . Machines Disabled . | . . . . . . . . . . . . . . . . . . . . . . . . . Actions | -11 -10 -10 -9 -9 -9 -8 -8 -8 -8 -8 -8 -8 -6 -6 -6 -6 -6 -6 -6 -5 -5 -5 -5 -5 --------- Run | Yrd Mat Min Mat Min Exi Min Mat Gar Mat Sto Rec Scr Fac Was Fac Low Low Zio Dee Pro Fac Was Fac Gar Total 19803 | 65 521 508 588 734 380 603 1178 1255 507 1294 526 1277 906 82 1010 597 592 2061 2504 212 1517 95 306 485 Wait 2861 | 2 101 24 64 48 3 65 118 52 48 268 21 203 14 . 92 3 102 1177 224 1 135 . 57 39 Move 14830 | 46 365 448 462 648 360 472 910 1027 397 884 490 1049 756 75 804 550 435 537 2071 202 1202 89 239 312 Hop . | . . . . . . . . . . . . . . . . . . . . . . . . . Pick Up 182 | 4 15 2 7 5 3 2 15 9 6 6 1 5 9 1 10 7 2 6 29 3 27 2 1 5 Fast Attach 163 | 7 4 . 11 . . 1 10 7 1 8 . 4 13 . 8 4 2 13 37 . 20 1 . 12 Attach 77 | . 1 3 1 2 1 3 4 2 1 1 1 1 6 1 4 2 1 2 14 . 16 1 1 8 Detach 42 | . . . . . . . 2 . . . . 1 4 . . . . 5 12 1 14 . . 3 Swap 168 | 1 4 6 6 4 2 3 18 4 11 11 4 . 13 1 14 9 3 24 9 1 8 . 4 8 Drop 242 | . 8 2 12 5 4 4 19 19 12 16 2 9 18 2 14 8 1 15 40 3 22 . 2 5 Fire 1043 | 5 23 20 25 20 3 51 80 91 31 100 7 5 72 2 64 14 46 249 43 1 14 2 . 75 Melee 110 | . . . . 2 4 2 2 . . . . . . . . . . . 21 . 59 . 2 18 Ram . | . . . . . . . . . . . . . . . . . . . . . . . . . Kick 1 | . . . . . . . . . . . . . 1 . . . . . . . . . . . Crush . | . . . . . . . . . . . . . . . . . . . . . . . . . Escape Stasis 32 | . . . . . . . . 32 . . . . . . . . . . . . . . . . Rewire 15 | . . 3 . . . . . 12 . . . . . . . . . . . . . . . . Trap 10 | . . . . . . . . . . . . . . . . . . 6 4 . . . . . Miscellaneous 27 | . . . . . . . . . . . . . . . . . . 27 . . . . . . Route ------- -11/Scrapyard -10/Materials -10/Mines (discovered 2 exits: *Mat x2) -9/Materials (discovered 3 exits: *Mat / *Min x2) -9/Mines (discovered 3 exits: *Mat x2 / *Exi) -9/Exiles (discovered 2 exits: [*Min x2]) -8/Mines (discovered 2 exits: *Mat x2) -8/Materials (discovered 4 exits: [*Fac] / *Sto x2 / Gar) -8/Garrison (discovered 3 exits: *Mat x3) -8/Materials (discovered 2 exits: [*Fac] / *Sto) -8/Storage (discovered 2 exits: [*Fac] / *Rec) -8/Recycling (discovered 2 exits: Fac / *Scr) -8/Scraptown -6/Factory (discovered 3 exits: *Fac / Low x2) -6/Waste -6/Factory (discovered 2 exits: *Low x2) -6/Lower Caves -6/Lower Caves (discovered 2 exits: Fac / *Zio) -6/Zion (discovered 2 exits: *Dee / [*Pro]) -6/Deep Caves -5/Proximity Caves -5/Factory (discovered 3 exits: *Fac / Upp x2) -5/Waste -5/Factory (discovered 2 exits: *Fac / Gar) -5/Garrison History --------- Turn | Location | Event 32 | -11/Scrapyard | Discovered new exit (range 15) 75 | -11/Scrapyard | Entered Materials 316 | -10/Materials | Build established: Mutant 470 | -10/Materials | Repaired Lgt. EM Pulse Cannon 503 | -10/Materials | Central database locked down 525 | -10/Materials | Discovered new exit (range 7) 749 | -10/Materials | Entered Mines 910 | -10/Mines | Learned Materials stockpile data 923 | -10/Mines | Escorted by a lone wolf Derelict 935 | -10/Mines | Discovered new exit (range 10) 943 | -10/Mines | Learned location of Storage (-8) 984 | -10/Mines | Met a Derelict shopkeep closing up shop 1158 | -10/Mines | Learned Materials emergency access door positions 1253 | -10/Mines | Discovered new exit (range 5) 1283 | -10/Mines | Core integrity fell below 50% 1308 | -10/Mines | Learned 2 Materials zone layouts 1381 | -10/Mines | Entered Materials 1381 | -9/Materials | Accompanied by 1 ally 1381 | -9/Materials | Evolved 2 slots: Utility x2 1735 | -9/Materials | Identified exit to Mines 1746 | -9/Materials | Discovered new exit (range 6) 1879 | -9/Materials | Repaired Lgt. EM Pulse Cannon+ 2083 | -9/Materials | Repaired Lgt. EM Pulse Cannon+ 2139 | -9/Materials | Entered Mines 2277 | -9/Mines | Assisted by bots powering up and referring to "LRC-V3" 2291 | -9/Mines | Destroyed YI-UF0 2576 | -9/Mines | Discovered new exit (range 10) 2595 | -9/Mines | Assembled infested the area 2612 | -9/Mines | Met 8R-AWN 2639 | -9/Mines | Received a Mining Laser from a helpful Derelict 2729 | -9/Mines | Discovered new exit (range 5) 2886 | -9/Mines | Discovered new exit (range 15) 3076 | -9/Mines | Entered Exiles 3093 | -9/Exiles | Discovered new exit (range 15) 3110 | -9/Exiles | Welcomed by 8R-AWN 3131 | -9/Exiles | Met EX-HEX 3180 | -9/Exiles | Met EX-DEC 3216 | -9/Exiles | Learned location of Zion (-6) 3241 | -9/Exiles | Met EX-BIN 3320 | -9/Exiles | Aligned with FarCom system 3321 | -9/Exiles | Given EX-Vault access code 3353 | -9/Exiles | Opened EX-Vault 3363 | -9/Exiles | Found YOLO Cannon 3369 | -9/Exiles | Found Cloak of Protection 3373 | -9/Exiles | Found Latent Energy Streamer 3397 | -9/Exiles | Warned to stay clear of 0b10 Research branches 3521 | -9/Exiles | Attacked by the Exiles 3536 | -9/Exiles | Discovered new exit (range 10) 3543 | -9/Exiles | Stole three prototypes: Cloak of Protection, Latent Energy Streamer, YOLO Cannon 3543 | -9/Exiles | Entered Mines 3581 | -8/Mines | Discovered new exit (range 4) 3805 | -8/Mines | Discovered new exit (range 5) 3972 | -8/Mines | Lost 3 parts (1n2w) 4195 | -8/Mines | Entered Materials 4195 | -8/Materials | Evolved 2 slots: Propulsion x2 4467 | -8/Materials | Discovered new exit (range 15) 4993 | -8/Materials | Identified exit to Garrison 5007 | -8/Materials | Discovered new exit (range 8) 5202 | -8/Materials | Discovered new exit (range 6) 5369 | -8/Materials | Repaired Hvy. Assault Cannon+ 5432 | -8/Materials | Identified exit to Storage 5526 | -8/Materials | Repaired Arm. Wheel+ 5571 | -8/Materials | Entered Garrison 5695 | -8/Garrison | Rescued HV-R5K 5871 | -8/Garrison | Triggered checkpoint 5887 | -8/Garrison | Discovered new exit (range 11) 5897 | -8/Garrison | Installed Relay Interface Framework 5977 | -8/Garrison | Garrison Relay disabled 6262 | -8/Garrison | Triggered checkpoint 6307 | -8/Garrison | Garrison Relay disabled 6399 | -8/Garrison | Discovered new exit (range 13) 6453 | -8/Garrison | Triggered checkpoint 6489 | -8/Garrison | Triggered checkpoint 6510 | -8/Garrison | Garrison Relay disabled 6533 | -8/Garrison | Discovered new exit (range 14) 6592 | -8/Garrison | Discovered new exit (range 34) 6592 | -8/Garrison | Discovered new exit (range 56) 6592 | -8/Garrison | Discovered new exit (range 76) 6661 | -8/Garrison | Triggered checkpoint 6684 | -8/Garrison | Expanded RIF knowledge: Threat Obfuscation 6741 | -8/Garrison | Garrison Relay disabled 6893 | -8/Garrison | Murdered HV-R5K 6950 | -8/Garrison | Found Exp. Core Analyzer 7093 | -8/Garrison | Entered Materials 7093 | -8/Materials | Accompanied by 2 allies 7186 | -8/Materials | Build established: Scavenger-Mutant 7288 | -8/Materials | Discovered new exit (range 13) 7649 | -8/Materials | Repaired Biometal Leg 7711 | -8/Materials | Entered Storage 7711 | -8/Storage | Accompanied by 1 ally 7949 | -8/Storage | Repaired Biometal Leg 8455 | -8/Storage | Repaired Hvy. Assault Cannon+ 8935 | -8/Storage | Discovered new exit (range 15) 8954 | -8/Storage | Identified exit to Recycling 8982 | -8/Storage | Loaded intel: 22 trap records 9002 | -8/Storage | Learned location of 1 exit from Recycling 9013 | -8/Storage | Learned location of 1 exit from Lower Caves 9014 | -8/Storage | Learned location of 1 exit from Lower Caves 9016 | -8/Storage | Learned Factory trap positions 9173 | -8/Storage | Used back door to open Recycling access 9303 | -8/Storage | Entered Recycling 9304 | -8/Recycling | Identified exit to Factory 9305 | -8/Recycling | Identified exit to Scraptown 9716 | -8/Recycling | Learned Factory security intel 9759 | -8/Recycling | Learned 2 Storage zone layouts 9790 | -8/Recycling | Scanned before Scraplab entrance 9809 | -8/Recycling | Entered Scraplab 9848 | -8/Recycling | Learned Factory stockpile data 9891 | -8/Recycling | Learned 4 Factory zone layouts 9913 | -8/Recycling | Entered Scraptown 9913 | -8/Scraptown | Accompanied by 1 ally 9913 | -8/Scraptown | System corruption cleaned by C-Scrubber 10062 | -8/Scraptown | Heard Great Nut preacher, LISTEN AND RECITE! 10065 | -8/Scraptown | Visited Fellowship of the Rings 10081 | -8/Scraptown | Visited Cyclists 10130 | -8/Scraptown | Visited The Evicted 10155 | -8/Scraptown | Visited Artisan Demo Area 10162 | -8/Scraptown | Visited Awakened 10178 | -8/Scraptown | Turned away by UFD registrar 11324 | -8/Scraptown | Attacked by Scraptown defenders 11348 | -8/Scraptown | Entered Factory 11348 | -6/Factory | Evolved 4 slots: Propulsion x1, Utility x2, Weapon x1 11349 | -6/Factory | Identified exit to Lower Caves 11351 | -6/Factory | Loaded intel: 79 trap records 11634 | -6/Factory | Garrison activated, responded to threat 11763 | -6/Factory | Discovered new exit (range 15) 12449 | -6/Factory | Sucked down chute 12449 | -6/Factory | Entered Waste 12458 | -6/Waste | Spotted C-40 Crusher 12458 | -6/Waste | Spotted C-40 Crusher 12459 | -6/Waste | Spotted C-40 Crusher 12464 | -6/Waste | EMP discharged 12464 | -6/Waste | System corruption reached 10% 12473 | -6/Waste | Spotted C-40 Crusher 12482 | -6/Waste | Spotted C-40 Crusher 12482 | -6/Waste | Found Corrupted Quantum Capacitor 12492 | -6/Waste | Spotted C-40 Crusher 12523 | -6/Waste | Discovered new exit (range 11) 12533 | -6/Waste | Entered Factory 12540 | -6/Factory | Build established: Gunner 12803 | -6/Factory | Fabricated Hvy. Assault Cannon? 13087 | -6/Factory | Repaired Broken Quantum Capacitor? 13704 | -6/Factory | Entered Lower Caves 13705 | -6/Lower Caves | Identified exit to Lower Caves 13969 | -6/Lower Caves | Build established: Skirmisher 14082 | -6/Lower Caves | Learned location of Extension (-4) 14233 | -6/Lower Caves | Found Alien Artifact 14233 | -6/Lower Caves | Identified Core Expander 14233 | -6/Lower Caves | Installed Core Expander, added new Power slot 14342 | -6/Lower Caves | Entered another Lower Caves area 14343 | -6/Lower Caves | Identified exit to Factory 14412 | -6/Lower Caves | Build established: Trapper-Skirmisher 14598 | -6/Lower Caves | Learned Factory terminal intel 14887 | -6/Lower Caves | Encountered a Master Thief 14887 | -6/Lower Caves | YOLO Cannon stolen by Master Thief 14888 | -6/Lower Caves | Encountered a Master Thief 14888 | -6/Lower Caves | Discovered new exit (range 15) 14889 | -6/Lower Caves | Encountered a Master Thief 14891 | -6/Lower Caves | Encountered a Master Thief 14891 | -6/Lower Caves | Latent Energy Streamer stolen by Master Thief 14893 | -6/Lower Caves | Cloak of Protection stolen by Master Thief 14899 | -6/Lower Caves | Exp. Core Analyzer stolen by Master Thief 14927 | -6/Lower Caves | Identified exit to Zion 15220 | -6/Lower Caves | Entered Zion 15289 | -6/Zion | System corruption cleaned by Quarantine Array 15356 | -6/Zion | Discovered new exit (range 13) 15923 | -6/Zion | RIF detected upon attempting to enter Zion 15923 | -6/Zion | Attacked by Zionites 16683 | -6/Zion | Spotted TW-202(B) 16748 | -6/Zion | Destroyed TW-202(B) 16767 | -6/Zion | Spotted Z2-BGG(B) 16896 | -6/Zion | Destroyed Z2-BGG(B) 17449 | -6/Zion | Found Prototype Device 17449 | -6/Zion | Identified Mobile Refinery Mk. CCLXVII 17503 | -6/Zion | Build established: Scavenger-Gunner 17594 | -6/Zion | Found Prototype Launcher 17600 | -6/Zion | Identified Rocket Array 17886 | -6/Zion | Discovered new exit (range 3) 17886 | -6/Zion | Saw the warning signs outside the Deep Caves entrance 17898 | -6/Zion | Identified exit to Deep Caves 17899 | -6/Zion | Entered Deep Caves 18239 | -6/Deep Caves | Attacked by Z-Imprinter 18246 | -6/Deep Caves | Attached CPS modules to Z-Imprinter. 18267 | -6/Deep Caves | Core integrity fell below 50% 18291 | -6/Deep Caves | Destroyed Z-Imprinter 18319 | -6/Deep Caves | Lost 8 parts (1p5n1u1w) 18320 | -6/Deep Caves | Found Prototype Protection 18320 | -6/Deep Caves | Identified Zio. Weapon Casing 18322 | -6/Deep Caves | Found Prototype Device 18322 | -6/Deep Caves | Identified Zio. Metafield Generator 18419 | -6/Deep Caves | Found Prototype Protection 18419 | -6/Deep Caves | Identified Zio. Heavy Carapace 18423 | -6/Deep Caves | Found Zio. Heavy Carapace 18476 | -6/Deep Caves | Z-Facility disabled 18703 | -6/Deep Caves | Found Zio. Heavy Carapace 18705 | -6/Deep Caves | Found Zio. Weapon Casing 18882 | -6/Deep Caves | Spotted AG-72607 18889 | -6/Deep Caves | Spotted AG-77659 18952 | -6/Deep Caves | Destroyed AG-72607 19008 | -6/Deep Caves | Found Zio. Heavy Carapace 19040 | -6/Deep Caves | Build established: Scavenger-Mutant 19266 | -6/Deep Caves | Destroyed AG-77659 19274 | -6/Deep Caves | Found Longsword +1 19281 | -6/Deep Caves | Triggered Deep Caves wall 19474 | -6/Deep Caves | Discovered new exit (range 6) 19475 | -6/Deep Caves | Identified exit to Proximity Caves 19541 | -6/Deep Caves | Entered Proximity Caves 19547 | -5/Proximity Caves | Found Alien Artifact 19589 | -5/Proximity Caves | Learned location of Warlord (-4) 19613 | -5/Proximity Caves | Discovered exit to Factory (range 10) 19616 | -5/Proximity Caves | Entered Factory 19616 | -5/Factory | Evolved 2 slots: Propulsion x1, Utility x1 19617 | -5/Factory | Loaded intel: 26 terminal locations 19653 | -5/Factory | Build established: Scavenger-Scout 19751 | -5/Factory | Identified exit to Upper Caves 20113 | -5/Factory | Lost 5 parts (3n1u1w) 20322 | -5/Factory | Discovered new exit (range 21) 20332 | -5/Factory | Identified exit to Factory 20435 | -5/Factory | Sucked down chute 20435 | -5/Factory | Entered Waste 20436 | -5/Waste | Met a frightened Derelict 20445 | -5/Waste | Spotted C-40 Crusher 20445 | -5/Waste | Spotted C-40 Crusher 20449 | -5/Waste | Spotted C-40 Crusher 20450 | -5/Waste | EMP discharged 20450 | -5/Waste | Spotted C-40 Crusher 20454 | -5/Waste | Spotted C-40 Crusher 20465 | -5/Waste | Spotted C-40 Crusher 20470 | -5/Waste | Discovered new exit (range 10) 20473 | -5/Waste | Identified exit to Factory 20473 | -5/Waste | Entered Factory 20537 | -5/Factory | Spotted B-75 Beast 20578 | -5/Factory | Discovered exit to Factory (range 6) 20627 | -5/Factory | Identified exit to Garrison 20627 | -5/Factory | Entered Garrison 20654 | -5/Garrison | Identified Dimensional Node Initializer 20654 | -5/Garrison | Initialized slip node 20656 | -5/Garrison | Core integrity fell below 50% 20713 | -5/Garrison | Lost 4 allies 20721 | -5/Garrison | Lost 10 parts (1p5n2u2w) 20990 | -5/Garrison | Build established: Scavenger-Skirmisher 21033 | -5/Garrison | Garrison Relay disabled 21060 | -5/Garrison | Triggered checkpoint 21438 | -5/Garrison | Spotted B-75 Beast 21481 | -5/Garrison | Destroyed B-75 Beast 21525 | -5/Garrison | Triggered checkpoint 21535 | -5/Garrison | Core integrity fell below 20% 21555 | -5/Garrison | Destroyed by G-50 Soldier with Heavy Laser Last Messages --------------- 21535_ Imp. Treads destroyed. Garrison Door activated. 21536_ Mak. Hacking Suite destroyed. 21538_ C-45 Heavy ARC bursts open, deploying its payload. 21538_ G-67 Veteran unfolds itself. 21538_ G-50 Soldier unfolds itself. 21539_ Carbon-fiber Leg destroyed. 21539_ Critical hit (Burn: +37). 21542_ Neutrino Core destroyed. 21544_ Destroyed VTOL Module. 21546_ Adv. VSS Leg destroyed. 21546_ Lgt. Nuclear Core melted. 21546_ S-27 Virus destroyed. 21547_ Hvy. Mass Driver destroyed. 21547_ Flexi-carbon Leg destroyed. 21548_ Gatling Laser destroyed. 21549_ F-cell Engine destroyed. 21549_ S-27 Virus destroyed. 21554_ Adv. Cooling System destroyed. 21555_ Variable Charge Gun destroyed. Map ----- +----------------------------------------------------+ | ?????????????????????????????????????????????????? | | ?????????????????????????????????????????????????? | | ?????????????????????????????????????????????????? | | ?????????????????????????????????????????????????? | | ?????????????????????????????????????????????????? | | ?????????????????????????????????????????????????? | | ?????????????????????????????????????????????????? | | ?????????????????????????????????????????????????? | | ?????????????????????????????????????????????????? | | ?????????????????????#####???????????????????????? | | ?????????????????????# ???????????????????????? | | ?????????????######### ###?######?????????????? | | ?????????????? ?? ??????????????? | | ??????????????? ? ???????????????? | | ???????????????? g ?? ????????????????? | | ????????????????# ## #? #?????????????????? | | ????????????????# ## g## #?#???????????????? | | ????????????????" ^ "C#???????????????? | | ????????????????" C#???????????????? | | ????????????????" C#???????????????? | | ????????????????" ? ????????????????? | | ????????????????# ## gs#? %#?????????????????? | | ???????########## ## ## g######T####???????? | | #####??# # =%sgg #???????? | | !! !#??# ; sg #???????? | | !! !#??# ####### @ #?????????????????? | | ## ##??# #?????# ##=%=[######?????????????????? | | ## ##### #?????# ##*[%%#??????????????????????? | | #?###?# #######??????????????????????? | | ######## #?# ?# #????????????????????????????? | | ???????# #?#%#?# #????????????????????????????? | | ???????# #?#%#?# #????????????????????????????? | | ???????# #?#%#?# #????????????????????????????? | | ########""###%### #????????????????????????????? | | ^ [% #????????????????????????????? | | ^ #????????????????????????????? | | !%[ #????????????????????????????? | | ########!%#########"#????????????????????????????? | | ???????# #???????# #????????????????????????????? | | ???????# #???????# #????????????????????????????? | | ???????# #???????# #????????????????????????????? | | ???????# #???????# #????????????????????????????? | | ???????# #???????# #????????????????????????????? | | ???????# ######### #????????????????????????????? | | ???????# ##"""!"## #????????????????????????????? | | ???????#!%### ! ### #????????????????????????????? | | ???????#%% ]! # #????????????????????????????? | | ???????# !! #"#????????????????????????????? | | ???????# ##%= ## #????????????????????????????? | | ???????# ##! ## #????????????????????????????? | +----------------------------------------------------+ Best States ------------- Heat Dissipation 90 Coolant Potential 65 Energy Generation 49 Energy Capacity 725 Matter Stores 300 Matter Capacity 300 Sight Range 22 Robot Scan Range 15 Terrain Scan Range 18 Terrain Scan Density 10 Jamming Range 12 Armor Coverage 1200 Resistance: EM 25 Weapon Shielding 100 Phase Shifting 15 Evasion (%) 71 Core Analysis 6 Recoil Reduction 3 Salvage Targeting 4 Offensive Hacking 21 Defensive Hacking 10 Relay Coupler Types 1 Relay Coupler Value 35 Authchip Count 3 Trap Extractor Capacity 6 Item Schematics ----------------- Hvy. Assault Cannon | -9/Materials | Scanalyzed Hrd. Light Armor Plating | -9/Materials | Scanalyzed Arm. Wheel | -9/Materials | Scanalyzed Gravmag Array | -8/Recycling | Hacked Imp. Trap Extractor | -8/Recycling | Hacked Hacking Suite | -8/Recycling | Hacked CPS Tube | -6/Factory | Scanalyzed Exp. Reaction Control System | -5/Factory | Scanalyzed Mak. Spear | -5/Garrison | Extrapolated Beamcaster | -5/Garrison | Extrapolated Mak. Coolant Network | -5/Garrison | Extrapolated Mak. Medium Armor Plating | -5/Garrison | Extrapolated Robot Schematics ------------------ None Fabricated ------------ Hvy. Assault Cannon | x1 | -6/Factory | Authchip Repaired ---------- Lgt. EM Pulse Cannon | 1% | -10/Materials Lgt. EM Pulse Cannon | 64% | -9/Materials Lgt. EM Pulse Cannon | 54% | -9/Materials Hvy. Assault Cannon | 12% | -8/Materials Arm. Wheel | 12% | -8/Materials Biometal Leg | 48% | -8/Materials Biometal Leg | 41% | -8/Storage Hvy. Assault Cannon | 62% | -8/Storage Quantum Capacitor | 65% | -6/Factory | Broken Studied --------- Lgt. EM Pulse Cannon | -9/Materials | Hacked Arm. Wheel | -9/Materials | Hacked Hvy. Assault Cannon | -8/Materials | Hacked Arm. Leg | -6/Factory | Hacked Linear Gravjet | -5/Factory | Hacked Antigrav System | -5/Factory | Hacked Alien Tech Used ----------------- Core Expander Dimensional Node Initializer Achievements -------------- Consequences Challenges ------------ None Game ------ Seed DefenseAssembledCapacitor Manual? 0 Play Time 04:28:30 Cumulative 1177.4 hours Start 2025.12.17 @ 05:37:55 End 2025.12.17 @ 10:48:02 Sessions 1 Manual Loads 0 Difficulty Rogue Special Mode None Game No. 410 Rogue 405 Adventurer 4 Explorer 1 Win Type - Total 25 Types 13/5/1/2/0/1/0/0/2/1 Lore% 97 Gallery% 96 Achievement% 82 Wizard Run 0 Options --------- Layout 0 ASCII 0 Keyboard 0 Movement Numpad Keybinds 0 Fullscreen 2 Font 18/SmallcapsGlow Map View 76x50 Zoom Use 0% Tactical HUD 1 Map Filters NONE Filters NONE Steam 1 RUN: 8c8010aa-bb25-42f7-86fc-309766ca3fff